{"text_format":"3","workbook":"xlsx","n_sheets":4,"sheets":["התחלה","דוח תקציב חודשי","הוצאות חודשיות","נתונים נוספים"],"not_rendered":{"charts":1,"defined_names":4,"pivot_tables":2},"read":"whole","date_system":"1900"}

{"sheet":"התחלה","index":0,"n_rows":8,"n_cols":2,"rows_kept":8}
[null,"אודות תבנית זו"]
[null,"השתמש בחוברת עבודה זו כדי לעקוב אחר ההוצאות שלך וליצור תקציב משפחתי."]
[null,"הזן הכנסות מתוכננות והכנסות בפועל ממקורות שונים בגליון העבודה 'דוח תקציב חודשי' וסכומים מתוכננים וסכומים בפועל שהוצאו בקטגוריות שונות בגליון העבודה 'הוצאות חודשיות'."]
[null,"היתרה המתוכננת, היתרה בפועל וההפרש מחושבים באופן אוטומטי, והתרשימים 'סיכום תקציב' ו'מבט כולל על התקציב' מתעדכנים בגליון העבודה 'דוח תקציב חודשי'."]
[null,"באפשרותך לשנות קטגוריה או להזין קטגוריה חדשה בטבלה בגליון העבודה 'נתונים נוספים'."]
[null,"הערה: "]
[null,"סופקו הוראות נוספות בעמודה A בגליון העבודה 'דוח תקציב חודשי' ובתא A1 בגליונות העבודה 'הוצאות חודשיות' ו'נתונים נוספים'. טקסט זה הוסתר במכוון. כדי להסיר את הטקסט, בחר את עמודה A או את תא A1 ולאחר מכן הקש DELETE. כדי לבטל את הסתרת הטקסט, בחר את עמודה A או את תא A1 ולאחר מכן שנה את צבע הגופן."]
[null,"לקבלת מידע נוסף על הטבלאות, הקש SHIFT ולאחר מכן F10 בתוך טבלה, בחר את האפשרות 'טבלה' ולאחר מכן בחר 'טקסט חלופי'. עבור טבלאות PivotTable, הקש SHIFT ולאחר מכן F10 בתוך טבלה, בחר 'אפשרויות PivotTable' ולאחר מכן בחר את הכרטיסיה 'טקסט חלופי'."]

{"sheet":"דוח תקציב חודשי","index":1,"n_rows":34,"n_cols":14,"rows_kept":34,"merged":[[0,1,0,4],[0,5,0,7],[0,12,0,13],[1,9,5,13],[2,2,2,5],[3,2,3,5],[4,2,4,5],[7,1,10,1],[7,5,10,5],[7,6,10,6],[8,9,31,9],[12,1,16,1],[12,5,16,5],[12,6,16,6],[19,1,34,6]]}
["צור דוח תקציב חודשי בגליון עבודה זה. הכותרת של גליון עבודה זה מופיעה בתא משמאל, וכותרת המשנה מופיעה בתא J1. בחר את תא F1 כדי לנווט לגליון העבודה 'הוצאות חודשיות'. הוראות מועילות אחרות לשימוש בגליון עבודה זה מופיעות בתאים שבעמודה זו.","מבט כולל על התקציב",{"$nulls":3},"הוצאות חודשיות",{"$nulls":3},"סיכום תקציב",null,null,"גבעול חיטה בודד בצבע ירוק נמצא בתא זה."]
["התווית 'יתרה' מופיעה בתא משמאל. כלי פריסה של PivotTable לסינון נתוני הטבלה מופיעים בתאים J2 עד N6. כדי לבחור כמה קטגוריות, החזק את מקש Control לחוץ.","יתרה",{"$nulls":7},"כלי הפריסה של הקטגוריות לסינון ה- PivotTable להלן לפי הקטגוריה שנבחרה נמצא בתא זה."]
["התווית 'יתרה מתוכננת' מופיעה בתא משמאל. היתרה המתוכננת מחושבת באופן אוטומטי בתא G3.","יתרה מתוכננת","('מתוכנן' פחות ההוצאות)",{"$nulls":3},{"$f":"D17-SUM(נתוני_התקציב[עלות מתוכננת])","v":{"v":1585,"d":"₪ 1,585"}}]
["התווית 'יתרה בפועל' מופיעה בתא משמאל. היתרה בפועל מחושבת באופן אוטומטי בתא G4.","יתרה בפועל ","('בפועל' פחות ההוצאות)",{"$nulls":3},{"$f":"D11-SUM(נתוני_התקציב[עלות בפועל])","v":{"v":1740,"d":"₪ 1,740"}}]
["התווית 'הפרש' מופיעה בתא משמאל. ההפרש מחושב באופן אוטומטי בתא G5. ההוראה הבאה מופיעה בתא A7.","הפרש","('בפועל' פחות 'מתוכנן')",{"$nulls":3},{"$f":"G4-G3","v":{"v":155,"d":"₪ 155"}}]
[]
["התווית 'הכנסות' מופיעה בתא משמאל, התווית 'הוצאות' נמצאת בתא F7 ועצה לסיכום התקציב נמצאת בתא J7.","הכנסות",{"$nulls":3},"הוצאות",{"$nulls":3},"בחר את ה- PivotTable להלן ולאחר מכן בחר רענן בכרטיסיה 'ניתוח' כדי לעדכן."]
["התווית 'הכנסות בפועל' מופיעה בתא משמאל והתווית 'הוצאות בפועל' מופיעה בתא F8. הזן הכנסה 1 בתא D8. ההוצאות בפועל מחושבות באופן אוטומטי בתא G8.","בפועל","הכנסה 1",{"v":5800,"d":"₪ 5,800"},null,"בפועל",{"$f":"SUM(נתוני_התקציב[עלות בפועל])","v":{"v":7860,"d":"₪ 7,860"}}]
["הזן הכנסה 2 בתא D9. מופיעה תמונה בתא J9. ה- PivotTable מתחיל תא K9. כדי לעדכן את ה- PivotTable, בחר 'רענן' בכרטיסיה 'ניתוח'.",null,"הכנסה 2",{"v":2300,"d":"₪ 2,300"},{"$nulls":5},"תא זה כולל תמונה.","קטגוריה","עלות מתוכננת ","עלות בפועל ","הפרש "]
["הזן הכנסה נוספת בתא D10.",null,"הכנסה נוספת",{"v":1500,"d":"₪ 1,500"},{"$nulls":6},"ילדים",{"v":140,"d":"₪ 140"},{"v":140,"d":"₪ 140"},{"v":0,"d":"₪ 0"}]
["התווית 'סה\"כ הכנסות' מופיעה בתא C11, וסך ההכנסות מחושב באופן אוטומטי בתא D11. ההוראה הבאה מופיעה בתא A13.",null,"סה\"כ הכנסות",{"$f":"SUM(D8:D10)","v":{"v":9600,"d":"₪ 9,600"}}]
[{"$nulls":10},"בידור",{"v":400,"d":"₪ 400"},{"v":358,"d":"₪ 358"},{"v":42,"d":"₪ 42"}]
["התווית 'הכנסות מתוכננות' מופיעה בתא משמאל והתווית 'הוצאות מתוכננות' מופיעה בתא F13. ההוצאות המתוכננות מחושבות באופן אוטומטי בתא G13.","מתוכננות",{"$nulls":3},"מתוכננות",{"$f":"SUM(נתוני_התקציב[עלות מתוכננת])","v":{"v":7915,"d":"₪ 7,915"}}]
["הזן הכנסה מתוכננת 1 בתא D14.",null,"הכנסה 1",{"v":6000,"d":"₪ 6,000"},{"$nulls":6},"מזון",{"v":1100,"d":"₪ 1,100"},{"v":1320,"d":"₪ 1,320"},{"v":-220,"d":"₪ -220"}]
["הזן הכנסה מתוכננת 2 בתא D15.",null,"הכנסה 2",{"v":1000,"d":"₪ 1,000"}]
["הזן הכנסה נוספת בתא D16.",null,"הכנסה נוספת",{"v":2500,"d":"₪ 2,500"},{"$nulls":6},"מתנות וצדקה",{"v":100,"d":"₪ 100"},{"v":125,"d":"₪ 125"},{"v":-25,"d":"₪ -25"}]
["התווית 'סה\"כ הכנסות' מופיעה בתא C17, וסך ההכנסות מחושב באופן אוטומטי בתא D17. ההוראה הבאה מופיעה בתא A20.",null,"סה\"כ הכנסות",{"$f":"SUM(D14:D16)","v":{"v":9500,"d":"₪ 9,500"}}]
[{"$nulls":10},"דיור",{"v":2830,"d":"₪ 2,830"},{"v":2702,"d":"₪ 2,702"},{"v":128,"d":"₪ 128"}]
[]
["תרשים עוגה המציג את אחוז ההוצאות לפי קטגוריה מופיע בתא משמאל.","תרשים עוגה המציג את אחוז ההוצאות לפי קטגוריה מופיע בתא זה.",{"$nulls":8},"ביטוח",{"v":900,"d":"₪ 900"},{"v":900,"d":"₪ 900"},{"v":0,"d":"₪ 0"}]
[]
[{"$nulls":10},"הלוואות",{"v":200,"d":"₪ 200"},{"v":200,"d":"₪ 200"},{"v":0,"d":"₪ 0"}]
[]
[{"$nulls":10},"בריאות וטיפוח",{"v":150,"d":"₪ 150"},{"v":140,"d":"₪ 140"},{"v":10,"d":"₪ 10"}]
[]
[{"$nulls":10},"חיות מחמד",{"v":170,"d":"₪ 170"},{"v":100,"d":"₪ 100"},{"v":70,"d":"₪ 70"}]
[]
[{"$nulls":10},"חסכונות או השקעות",{"v":200,"d":"₪ 200"},{"v":200,"d":"₪ 200"},{"v":0,"d":"₪ 0"}]
[]
[{"$nulls":10},"מסים",{"v":300,"d":"₪ 300"},{"v":300,"d":"₪ 300"},{"v":0,"d":"₪ 0"}]
[]
[{"$nulls":10},"תחבורה",{"v":1425,"d":"₪ 1,425"},{"v":1375,"d":"₪ 1,375"},{"v":50,"d":"₪ 50"}]
[]
[{"$nulls":10},"סכום כולל",{"v":7915,"d":"₪ 7,915"},{"v":7860,"d":"₪ 7,860"},{"v":55,"d":"₪ 55"}]

{"sheet":"הוצאות חודשיות","index":2,"n_rows":62,"n_cols":7,"rows_kept":62,"merged":[[0,1,0,4],[0,5,0,6]]}
["חשב את הוצאות החודשיות שלך בגליון עבודה זה. הכותרת של גליון עבודה זה מופיעה בתא משמאל. בחר את תא F1 כדי לנווט לגליון העבודה 'דוח תקציב חודשי'.","הוצאות חודשיות",{"$nulls":3},"דוח תקציב חודשי"]
[" הזן נתונים בטבלת נתוני התקציב שמתחילה בתא משמאל.","תיאור","קטגוריה","עלות מתוכננת","עלות בפועל","הפרש","מבט כולל על עלות בפועל"]
[null,"פעילויות מחוץ ללימודים","ילדים",{"v":40,"d":"₪ 40"},{"v":40,"d":"₪ 40"},{"$f":"נתוני_התקציב[[#This Row],[עלות מתוכננת]]-נתוני_התקציב[[#This Row],[עלות בפועל]]","v":{"v":0,"d":"₪ 0"}},{"$f":"נתוני_התקציב[[#This Row],[עלות בפועל]]","v":{"v":40,"d":"₪ 40"}}]
[null,"תרופות","ילדים",null,null,{"$f":"נתוני_התקציב[[#This Row],[עלות מתוכננת]]-נתוני_התקציב[[#This Row],[עלות בפועל]]","v":{"v":0,"d":"₪ 0"}},{"$f":"נתוני_התקציב[[#This Row],[עלות בפועל]]","v":{"v":0,"d":"₪ 0"}}]
[null,"ציוד לבית הספר","ילדים",null,null,{"$f":"נתוני_התקציב[[#This Row],[עלות מתוכננת]]-נתוני_התקציב[[#This Row],[עלות בפועל]]","v":{"v":0,"d":"₪ 0"}},{"$f":"נתוני_התקציב[[#This Row],[עלות בפועל]]","v":{"v":0,"d":"₪ 0"}}]
[null,"תשלומים לבית הספר","ילדים",{"v":100,"d":"₪ 100"},{"v":100,"d":"₪ 100"},{"$f":"נתוני_התקציב[[#This Row],[עלות מתוכננת]]-נתוני_התקציב[[#This Row],[עלות בפועל]]","v":{"v":0,"d":"₪ 0"}},{"$f":"נתוני_התקציב[[#This Row],[עלות בפועל]]","v":{"v":100,"d":"₪ 100"}}]
[null,"מופעים","בידור",{"v":50,"d":"₪ 50"},{"v":40,"d":"₪ 40"},{"$f":"נתוני_התקציב[[#This Row],[עלות מתוכננת]]-נתוני_התקציב[[#This Row],[עלות בפועל]]","v":{"v":10,"d":"₪ 10"}},{"$f":"נתוני_התקציב[[#This Row],[עלות בפועל]]","v":{"v":40,"d":"₪ 40"}}]
[null,"תיאטרון","בידור",{"v":200,"d":"₪ 200"},{"v":150,"d":"₪ 150"},{"$f":"נתוני_התקציב[[#This Row],[עלות מתוכננת]]-נתוני_התקציב[[#This Row],[עלות בפועל]]","v":{"v":50,"d":"₪ 50"}},{"$f":"נתוני_התקציב[[#This Row],[עלות בפועל]]","v":{"v":150,"d":"₪ 150"}}]
[null,"סרטים","בידור",{"v":50,"d":"₪ 50"},{"v":28,"d":"₪ 28"},{"$f":"נתוני_התקציב[[#This Row],[עלות מתוכננת]]-נתוני_התקציב[[#This Row],[עלות בפועל]]","v":{"v":22,"d":"₪ 22"}},{"$f":"נתוני_התקציב[[#This Row],[עלות בפועל]]","v":{"v":28,"d":"₪ 28"}}]
[null,"מוסיקה (תקליטורים, הורדות וכן הלאה)","בידור",{"v":50,"d":"₪ 50"},{"v":30,"d":"₪ 30"},{"$f":"נתוני_התקציב[[#This Row],[עלות מתוכננת]]-נתוני_התקציב[[#This Row],[עלות בפועל]]","v":{"v":20,"d":"₪ 20"}},{"$f":"נתוני_התקציב[[#This Row],[עלות בפועל]]","v":{"v":30,"d":"₪ 30"}}]
[null,"אירועי ספורט","בידור",{"v":0,"d":"₪ 0"},{"v":40,"d":"₪ 40"},{"$f":"נתוני_התקציב[[#This Row],[עלות מתוכננת]]-נתוני_התקציב[[#This Row],[עלות בפועל]]","v":{"v":-40,"d":"₪ -40"}},{"$f":"נתוני_התקציב[[#This Row],[עלות בפועל]]","v":{"v":40,"d":"₪ 40"}}]
[null,"וידאו/DVD (רכישה)","בידור",{"v":20,"d":"₪ 20"},{"v":50,"d":"₪ 50"},{"$f":"נתוני_התקציב[[#This Row],[עלות מתוכננת]]-נתוני_התקציב[[#This Row],[עלות בפועל]]","v":{"v":-30,"d":"₪ -30"}},{"$f":"נתוני_התקציב[[#This Row],[עלות בפועל]]","v":{"v":50,"d":"₪ 50"}}]
[null,"וידאו/DVD (השכרה)","בידור",{"v":30,"d":"₪ 30"},{"v":20,"d":"₪ 20"},{"$f":"נתוני_התקציב[[#This Row],[עלות מתוכננת]]-נתוני_התקציב[[#This Row],[עלות בפועל]]","v":{"v":10,"d":"₪ 10"}},{"$f":"נתוני_התקציב[[#This Row],[עלות בפועל]]","v":{"v":20,"d":"₪ 20"}}]
[null,"ארוחות מחוץ לבית","מזון",{"v":1000,"d":"₪ 1,000"},{"v":1200,"d":"₪ 1,200"},{"$f":"נתוני_התקציב[[#This Row],[עלות מתוכננת]]-נתוני_התקציב[[#This Row],[עלות בפועל]]","v":{"v":-200,"d":"₪ -200"}},{"$f":"נתוני_התקציב[[#This Row],[עלות בפועל]]","v":{"v":1200,"d":"₪ 1,200"}}]
[null,"מצרכים","מזון",{"v":100,"d":"₪ 100"},{"v":120,"d":"₪ 120"},{"$f":"נתוני_התקציב[[#This Row],[עלות מתוכננת]]-נתוני_התקציב[[#This Row],[עלות בפועל]]","v":{"v":-20,"d":"₪ -20"}},{"$f":"נתוני_התקציב[[#This Row],[עלות בפועל]]","v":{"v":120,"d":"₪ 120"}}]
[null,"צדקה 1","מתנות וצדקה",{"v":75,"d":"₪ 75"},{"v":100,"d":"₪ 100"},{"$f":"נתוני_התקציב[[#This Row],[עלות מתוכננת]]-נתוני_התקציב[[#This Row],[עלות בפועל]]","v":{"v":-25,"d":"₪ -25"}},{"$f":"נתוני_התקציב[[#This Row],[עלות בפועל]]","v":{"v":100,"d":"₪ 100"}}]
[null,"צדקה 2","מתנות וצדקה",{"v":25,"d":"₪ 25"},{"v":25,"d":"₪ 25"},{"$f":"נתוני_התקציב[[#This Row],[עלות מתוכננת]]-נתוני_התקציב[[#This Row],[עלות בפועל]]","v":{"v":0,"d":"₪ 0"}},{"$f":"נתוני_התקציב[[#This Row],[עלות בפועל]]","v":{"v":25,"d":"₪ 25"}}]
[null,"מתנה 1","מתנות וצדקה",null,null,{"$f":"נתוני_התקציב[[#This Row],[עלות מתוכננת]]-נתוני_התקציב[[#This Row],[עלות בפועל]]","v":{"v":0,"d":"₪ 0"}},{"$f":"נתוני_התקציב[[#This Row],[עלות בפועל]]","v":{"v":0,"d":"₪ 0"}}]
[null,"מתנה 2","מתנות וצדקה",null,null,{"$f":"נתוני_התקציב[[#This Row],[עלות מתוכננת]]-נתוני_התקציב[[#This Row],[עלות בפועל]]","v":{"v":0,"d":"₪ 0"}},{"$f":"נתוני_התקציב[[#This Row],[עלות בפועל]]","v":{"v":0,"d":"₪ 0"}}]
[null,"כבלים/לוויין","דיור",{"v":100,"d":"₪ 100"},{"v":100,"d":"₪ 100"},{"$f":"נתוני_התקציב[[#This Row],[עלות מתוכננת]]-נתוני_התקציב[[#This Row],[עלות בפועל]]","v":{"v":0,"d":"₪ 0"}},{"$f":"נתוני_התקציב[[#This Row],[עלות בפועל]]","v":{"v":100,"d":"₪ 100"}}]
[null,"חשמל","דיור",{"v":45,"d":"₪ 45"},{"v":50,"d":"₪ 50"},{"$f":"נתוני_התקציב[[#This Row],[עלות מתוכננת]]-נתוני_התקציב[[#This Row],[עלות בפועל]]","v":{"v":-5,"d":"₪ -5"}},{"$f":"נתוני_התקציב[[#This Row],[עלות בפועל]]","v":{"v":50,"d":"₪ 50"}}]
[null,"גז","דיור",{"v":300,"d":"₪ 300"},{"v":400,"d":"₪ 400"},{"$f":"נתוני_התקציב[[#This Row],[עלות מתוכננת]]-נתוני_התקציב[[#This Row],[עלות בפועל]]","v":{"v":-100,"d":"₪ -100"}},{"$f":"נתוני_התקציב[[#This Row],[עלות בפועל]]","v":{"v":400,"d":"₪ 400"}}]
[null,"עוזרי בית","דיור",{"v":200,"d":"₪ 200"},null,{"$f":"נתוני_התקציב[[#This Row],[עלות מתוכננת]]-נתוני_התקציב[[#This Row],[עלות בפועל]]","v":{"v":200,"d":"₪ 200"}},{"$f":"נתוני_התקציב[[#This Row],[עלות בפועל]]","v":{"v":0,"d":"₪ 0"}}]
[null,"תחזוקה","דיור",{"v":200,"d":"₪ 200"},{"v":150,"d":"₪ 150"},{"$f":"נתוני_התקציב[[#This Row],[עלות מתוכננת]]-נתוני_התקציב[[#This Row],[עלות בפועל]]","v":{"v":50,"d":"₪ 50"}},{"$f":"נתוני_התקציב[[#This Row],[עלות בפועל]]","v":{"v":150,"d":"₪ 150"}}]
[null,"משכנתה או שכר דירה","דיור",{"v":1700,"d":"₪ 1,700"},{"v":1700,"d":"₪ 1,700"},{"$f":"נתוני_התקציב[[#This Row],[עלות מתוכננת]]-נתוני_התקציב[[#This Row],[עלות בפועל]]","v":{"v":0,"d":"₪ 0"}},{"$f":"נתוני_התקציב[[#This Row],[עלות בפועל]]","v":{"v":1700,"d":"₪ 1,700"}}]
[null,"גז טבעי","דיור",null,null,{"$f":"נתוני_התקציב[[#This Row],[עלות מתוכננת]]-נתוני_התקציב[[#This Row],[עלות בפועל]]","v":{"v":0,"d":"₪ 0"}},{"$f":"נתוני_התקציב[[#This Row],[עלות בפועל]]","v":{"v":0,"d":"₪ 0"}}]
[null,"שירות אינטרנט","דיור",{"v":100,"d":"₪ 100"},{"v":100,"d":"₪ 100"},{"$f":"נתוני_התקציב[[#This Row],[עלות מתוכננת]]-נתוני_התקציב[[#This Row],[עלות בפועל]]","v":{"v":0,"d":"₪ 0"}},{"$f":"נתוני_התקציב[[#This Row],[עלות בפועל]]","v":{"v":100,"d":"₪ 100"}}]
[null,"טלפון (סלולרי)","דיור",{"v":60,"d":"₪ 60"},{"v":60,"d":"₪ 60"},{"$f":"נתוני_התקציב[[#This Row],[עלות מתוכננת]]-נתוני_התקציב[[#This Row],[עלות בפועל]]","v":{"v":0,"d":"₪ 0"}},{"$f":"נתוני_התקציב[[#This Row],[עלות בפועל]]","v":{"v":60,"d":"₪ 60"}}]
[null,"טלפון (בית)","דיור",{"v":35,"d":"₪ 35"},{"v":39,"d":"₪ 39"},{"$f":"נתוני_התקציב[[#This Row],[עלות מתוכננת]]-נתוני_התקציב[[#This Row],[עלות בפועל]]","v":{"v":-4,"d":"₪ -4"}},{"$f":"נתוני_התקציב[[#This Row],[עלות בפועל]]","v":{"v":39,"d":"₪ 39"}}]
[null,"ציוד","דיור",{"v":40,"d":"₪ 40"},{"v":55,"d":"₪ 55"},{"$f":"נתוני_התקציב[[#This Row],[עלות מתוכננת]]-נתוני_התקציב[[#This Row],[עלות בפועל]]","v":{"v":-15,"d":"₪ -15"}},{"$f":"נתוני_התקציב[[#This Row],[עלות בפועל]]","v":{"v":55,"d":"₪ 55"}}]
[null,"פינוי פסולת ומיחזור","דיור",{"v":25,"d":"₪ 25"},{"v":22,"d":"₪ 22"},{"$f":"נתוני_התקציב[[#This Row],[עלות מתוכננת]]-נתוני_התקציב[[#This Row],[עלות בפועל]]","v":{"v":3,"d":"₪ 3"}},{"$f":"נתוני_התקציב[[#This Row],[עלות בפועל]]","v":{"v":22,"d":"₪ 22"}}]
[null,"מים וביוב","דיור",{"v":25,"d":"₪ 25"},{"v":26,"d":"₪ 26"},{"$f":"נתוני_התקציב[[#This Row],[עלות מתוכננת]]-נתוני_התקציב[[#This Row],[עלות בפועל]]","v":{"v":-1,"d":"₪ -1"}},{"$f":"נתוני_התקציב[[#This Row],[עלות בפועל]]","v":{"v":26,"d":"₪ 26"}}]
[null,"בריאות","ביטוח",{"v":400,"d":"₪ 400"},{"v":400,"d":"₪ 400"},{"$f":"נתוני_התקציב[[#This Row],[עלות מתוכננת]]-נתוני_התקציב[[#This Row],[עלות בפועל]]","v":{"v":0,"d":"₪ 0"}},{"$f":"נתוני_התקציב[[#This Row],[עלות בפועל]]","v":{"v":400,"d":"₪ 400"}}]
[null,"דירה","ביטוח",{"v":400,"d":"₪ 400"},{"v":400,"d":"₪ 400"},{"$f":"נתוני_התקציב[[#This Row],[עלות מתוכננת]]-נתוני_התקציב[[#This Row],[עלות בפועל]]","v":{"v":0,"d":"₪ 0"}},{"$f":"נתוני_התקציב[[#This Row],[עלות בפועל]]","v":{"v":400,"d":"₪ 400"}}]
[null,"חיים","ביטוח",{"v":100,"d":"₪ 100"},{"v":100,"d":"₪ 100"},{"$f":"נתוני_התקציב[[#This Row],[עלות מתוכננת]]-נתוני_התקציב[[#This Row],[עלות בפועל]]","v":{"v":0,"d":"₪ 0"}},{"$f":"נתוני_התקציב[[#This Row],[עלות בפועל]]","v":{"v":100,"d":"₪ 100"}}]
[null,"כרטיס אשראי 1","הלוואות",{"v":200,"d":"₪ 200"},{"v":200,"d":"₪ 200"},{"$f":"נתוני_התקציב[[#This Row],[עלות מתוכננת]]-נתוני_התקציב[[#This Row],[עלות בפועל]]","v":{"v":0,"d":"₪ 0"}},{"$f":"נתוני_התקציב[[#This Row],[עלות בפועל]]","v":{"v":200,"d":"₪ 200"}}]
[null,"כרטיס אשראי 2","הלוואות",null,null,{"$f":"נתוני_התקציב[[#This Row],[עלות מתוכננת]]-נתוני_התקציב[[#This Row],[עלות בפועל]]","v":{"v":0,"d":"₪ 0"}},{"$f":"נתוני_התקציב[[#This Row],[עלות בפועל]]","v":{"v":0,"d":"₪ 0"}}]
[null,"כרטיס אשראי 3","הלוואות",null,null,{"$f":"נתוני_התקציב[[#This Row],[עלות מתוכננת]]-נתוני_התקציב[[#This Row],[עלות בפועל]]","v":{"v":0,"d":"₪ 0"}},{"$f":"נתוני_התקציב[[#This Row],[עלות בפועל]]","v":{"v":0,"d":"₪ 0"}}]
[null,"אישי","הלוואות",null,null,{"$f":"נתוני_התקציב[[#This Row],[עלות מתוכננת]]-נתוני_התקציב[[#This Row],[עלות בפועל]]","v":{"v":0,"d":"₪ 0"}},{"$f":"נתוני_התקציב[[#This Row],[עלות בפועל]]","v":{"v":0,"d":"₪ 0"}}]
[null,"סטודנט","הלוואות",null,null,{"$f":"נתוני_התקציב[[#This Row],[עלות מתוכננת]]-נתוני_התקציב[[#This Row],[עלות בפועל]]","v":{"v":0,"d":"₪ 0"}},{"$f":"נתוני_התקציב[[#This Row],[עלות בפועל]]","v":{"v":0,"d":"₪ 0"}}]
[null,"בגדים","בריאות וטיפוח",{"v":150,"d":"₪ 150"},{"v":140,"d":"₪ 140"},{"$f":"נתוני_התקציב[[#This Row],[עלות מתוכננת]]-נתוני_התקציב[[#This Row],[עלות בפועל]]","v":{"v":10,"d":"₪ 10"}},{"$f":"נתוני_התקציב[[#This Row],[עלות בפועל]]","v":{"v":140,"d":"₪ 140"}}]
[null,"ניקוי יבש","בריאות וטיפוח",null,null,{"$f":"נתוני_התקציב[[#This Row],[עלות מתוכננת]]-נתוני_התקציב[[#This Row],[עלות בפועל]]","v":{"v":0,"d":"₪ 0"}},{"$f":"נתוני_התקציב[[#This Row],[עלות בפועל]]","v":{"v":0,"d":"₪ 0"}}]
[null,"שיער/ציפורניים","בריאות וטיפוח",null,null,{"$f":"נתוני_התקציב[[#This Row],[עלות מתוכננת]]-נתוני_התקציב[[#This Row],[עלות בפועל]]","v":{"v":0,"d":"₪ 0"}},{"$f":"נתוני_התקציב[[#This Row],[עלות בפועל]]","v":{"v":0,"d":"₪ 0"}}]
[null,"מועדון בריאות","בריאות וטיפוח",null,null,{"$f":"נתוני_התקציב[[#This Row],[עלות מתוכננת]]-נתוני_התקציב[[#This Row],[עלות בפועל]]","v":{"v":0,"d":"₪ 0"}},{"$f":"נתוני_התקציב[[#This Row],[עלות בפועל]]","v":{"v":0,"d":"₪ 0"}}]
[null,"תרופות","בריאות וטיפוח",null,null,{"$f":"נתוני_התקציב[[#This Row],[עלות מתוכננת]]-נתוני_התקציב[[#This Row],[עלות בפועל]]","v":{"v":0,"d":"₪ 0"}},{"$f":"נתוני_התקציב[[#This Row],[עלות בפועל]]","v":{"v":0,"d":"₪ 0"}}]
[null,"מזון","חיות מחמד",{"v":150,"d":"₪ 150"},{"v":75,"d":"₪ 75"},{"$f":"נתוני_התקציב[[#This Row],[עלות מתוכננת]]-נתוני_התקציב[[#This Row],[עלות בפועל]]","v":{"v":75,"d":"₪ 75"}},{"$f":"נתוני_התקציב[[#This Row],[עלות בפועל]]","v":{"v":75,"d":"₪ 75"}}]
[null,"טיפוח","חיות מחמד",{"v":20,"d":"₪ 20"},{"v":25,"d":"₪ 25"},{"$f":"נתוני_התקציב[[#This Row],[עלות מתוכננת]]-נתוני_התקציב[[#This Row],[עלות בפועל]]","v":{"v":-5,"d":"₪ -5"}},{"$f":"נתוני_התקציב[[#This Row],[עלות בפועל]]","v":{"v":25,"d":"₪ 25"}}]
[null,"תרופות","חיות מחמד",null,null,{"$f":"נתוני_התקציב[[#This Row],[עלות מתוכננת]]-נתוני_התקציב[[#This Row],[עלות בפועל]]","v":{"v":0,"d":"₪ 0"}},{"$f":"נתוני_התקציב[[#This Row],[עלות בפועל]]","v":{"v":0,"d":"₪ 0"}}]
[null,"צעצועים","חיות מחמד",null,null,{"$f":"נתוני_התקציב[[#This Row],[עלות מתוכננת]]-נתוני_התקציב[[#This Row],[עלות בפועל]]","v":{"v":0,"d":"₪ 0"}},{"$f":"נתוני_התקציב[[#This Row],[עלות בפועל]]","v":{"v":0,"d":"₪ 0"}}]
[null,"חשבון להשקעה","חסכונות או השקעות",{"v":200,"d":"₪ 200"},{"v":200,"d":"₪ 200"},{"$f":"נתוני_התקציב[[#This Row],[עלות מתוכננת]]-נתוני_התקציב[[#This Row],[עלות בפועל]]","v":{"v":0,"d":"₪ 0"}},{"$f":"נתוני_התקציב[[#This Row],[עלות בפועל]]","v":{"v":200,"d":"₪ 200"}}]
[null,"חשבון לפרישה","חסכונות או השקעות",null,null,{"$f":"נתוני_התקציב[[#This Row],[עלות מתוכננת]]-נתוני_התקציב[[#This Row],[עלות בפועל]]","v":{"v":0,"d":"₪ 0"}},{"$f":"נתוני_התקציב[[#This Row],[עלות בפועל]]","v":{"v":0,"d":"₪ 0"}}]
[null,"ארצי","מסים",{"v":300,"d":"₪ 300"},{"v":300,"d":"₪ 300"},{"$f":"נתוני_התקציב[[#This Row],[עלות מתוכננת]]-נתוני_התקציב[[#This Row],[עלות בפועל]]","v":{"v":0,"d":"₪ 0"}},{"$f":"נתוני_התקציב[[#This Row],[עלות בפועל]]","v":{"v":300,"d":"₪ 300"}}]
[null,"מקומי","מסים",null,null,{"$f":"נתוני_התקציב[[#This Row],[עלות מתוכננת]]-נתוני_התקציב[[#This Row],[עלות בפועל]]","v":{"v":0,"d":"₪ 0"}},{"$f":"נתוני_התקציב[[#This Row],[עלות בפועל]]","v":{"v":0,"d":"₪ 0"}}]
[null,"של המדינה","מסים",null,null,{"$f":"נתוני_התקציב[[#This Row],[עלות מתוכננת]]-נתוני_התקציב[[#This Row],[עלות בפועל]]","v":{"v":0,"d":"₪ 0"}},{"$f":"נתוני_התקציב[[#This Row],[עלות בפועל]]","v":{"v":0,"d":"₪ 0"}}]
[null,"תשלום עבור אוטובוס/מונית","תחבורה",{"v":100,"d":"₪ 100"},{"v":150,"d":"₪ 150"},{"$f":"נתוני_התקציב[[#This Row],[עלות מתוכננת]]-נתוני_התקציב[[#This Row],[עלות בפועל]]","v":{"v":-50,"d":"₪ -50"}},{"$f":"נתוני_התקציב[[#This Row],[עלות בפועל]]","v":{"v":150,"d":"₪ 150"}}]
[null,"דלק","תחבורה",{"v":450,"d":"₪ 450"},{"v":400,"d":"₪ 400"},{"$f":"נתוני_התקציב[[#This Row],[עלות מתוכננת]]-נתוני_התקציב[[#This Row],[עלות בפועל]]","v":{"v":50,"d":"₪ 50"}},{"$f":"נתוני_התקציב[[#This Row],[עלות בפועל]]","v":{"v":400,"d":"₪ 400"}}]
[null,"ביטוח","תחבורה",{"v":300,"d":"₪ 300"},{"v":300,"d":"₪ 300"},{"$f":"נתוני_התקציב[[#This Row],[עלות מתוכננת]]-נתוני_התקציב[[#This Row],[עלות בפועל]]","v":{"v":0,"d":"₪ 0"}},{"$f":"נתוני_התקציב[[#This Row],[עלות בפועל]]","v":{"v":300,"d":"₪ 300"}}]
[null,"רישוי ","תחבורה",{"v":25,"d":"₪ 25"},{"v":25,"d":"₪ 25"},{"$f":"נתוני_התקציב[[#This Row],[עלות מתוכננת]]-נתוני_התקציב[[#This Row],[עלות בפועל]]","v":{"v":0,"d":"₪ 0"}},{"$f":"נתוני_התקציב[[#This Row],[עלות בפועל]]","v":{"v":25,"d":"₪ 25"}}]
[null,"תחזוקה","תחבורה",{"v":100,"d":"₪ 100"},{"v":50,"d":"₪ 50"},{"$f":"נתוני_התקציב[[#This Row],[עלות מתוכננת]]-נתוני_התקציב[[#This Row],[עלות בפועל]]","v":{"v":50,"d":"₪ 50"}},{"$f":"נתוני_התקציב[[#This Row],[עלות בפועל]]","v":{"v":50,"d":"₪ 50"}}]
[null,"דמי חניה","תחבורה",null,null,{"$f":"נתוני_התקציב[[#This Row],[עלות מתוכננת]]-נתוני_התקציב[[#This Row],[עלות בפועל]]","v":{"v":0,"d":"₪ 0"}},{"$f":"נתוני_התקציב[[#This Row],[עלות בפועל]]","v":{"v":0,"d":"₪ 0"}}]
[null,"תשלום רכב","תחבורה",{"v":450,"d":"₪ 450"},{"v":450,"d":"₪ 450"},{"$f":"נתוני_התקציב[[#This Row],[עלות מתוכננת]]-נתוני_התקציב[[#This Row],[עלות בפועל]]","v":{"v":0,"d":"₪ 0"}},{"$f":"נתוני_התקציב[[#This Row],[עלות בפועל]]","v":{"v":450,"d":"₪ 450"}}]
[null,"סך הכל",null,{"$f":"SUBTOTAL(109,נתוני_התקציב[עלות מתוכננת])","v":{"v":7915,"d":"₪ 7,915"}},{"$f":"SUBTOTAL(109,נתוני_התקציב[עלות בפועל])","v":{"v":7860,"d":"₪ 7,860"}},{"$f":"SUBTOTAL(109,נתוני_התקציב[הפרש])","v":{"v":55,"d":"₪ 55"}}]

{"sheet":"נתונים נוספים","index":3,"n_rows":15,"n_cols":5,"rows_kept":15}
["השתמש בגליון עבודה זה כדי לשנות את הרשימה הנפתחת של העמודה 'קטגוריה' בטבלת נתוני התקציב בגליון העבודה 'הוצאות חודשיות'. לשם כך, שנה קטגוריה או ציין קטגוריה חדשה בטבלה 'בדיקת מידע של קטגוריות תקציב' המתחילה בתא E2. PivotTable המקושר לתרשים 'מבט כולל על התקציב' בגליון העבודה 'דוח תקציב חודשי' מתחיל בתא B2.","PivotTable עבור התרשים 'מבט כולל על התקציב'",null,null,"רשימת בדיקת מידע עבור קטגוריית פרטי התקציב"]
[null,"קטגוריה","עלות",null,"בדיקת מידע של קטגוריות תקציב"]
[null,"ילדים",{"v":140,"d":"₪ 140"},null,"ילדים"]
[null,"בידור",{"v":358,"d":"₪ 358"},null,"בידור"]
[null,"מזון",{"v":1320,"d":"₪ 1,320"},null,"מזון"]
[null,"מתנות וצדקה",{"v":125,"d":"₪ 125"},null,"מתנות וצדקה"]
[null,"דיור",{"v":2702,"d":"₪ 2,702"},null,"דיור"]
[null,"ביטוח",{"v":900,"d":"₪ 900"},null,"ביטוח"]
[null,"הלוואות",{"v":200,"d":"₪ 200"},null,"הלוואות"]
[null,"בריאות וטיפוח",{"v":140,"d":"₪ 140"},null,"בריאות וטיפוח"]
[null,"חיות מחמד",{"v":100,"d":"₪ 100"},null,"חיות מחמד"]
[null,"חסכונות או השקעות",{"v":200,"d":"₪ 200"},null,"חסכונות או השקעות"]
[null,"מסים",{"v":300,"d":"₪ 300"},null,"מסים"]
[null,"תחבורה",{"v":1375,"d":"₪ 1,375"},null,"תחבורה"]
[null,"סכום כולל",{"v":7860,"d":"₪ 7,860"}]